[Event "DVM U12 2024"]
[Site "Heidelberg"]
[Date "2024.12.28"]
[Round "3"]
[White "Satti, Shahroz"]
[Black "Liu, Zichen"]
[Result "1-0"]
[ECO "A46"]
[WhiteElo "1525"]
[BlackElo "1563"]
[Annotator "NA"]
[PlyCount "121"]
[EventDate "2024.12.23"]
[EventType "team-tourn"]
[EventRounds "7"]
[EventCountry "GER"]
[SourceTitle "playchess.com"]
[Source "ChessBase"]
[SourceQuality "1"]
[TimeControl "40/5400+30:1800+30"]

1. d4 {[%emt 0:00:03]} Nf6 {[%emt 0:00:47]} 2. Nf3 {[%emt 0:00:17]} e6 {[%emt 0:00:48]} 3. g3 {[%emt 0:00:14]} b5 {[%emt 0:00:29]} 4. Bg2 {[%emt 0:00:38]} Bb7 {[%emt 0:01:01]} 5. O-O {[%emt 0:00:44]} Be7 {[%emt 0:01:45]} 6. Nbd2 {[%emt 0:03:01]} O-O {[%emt 0:02:37]} 7. c4 {[%emt 0:00:31]} bxc4 {[%emt 0:07:05]} 8. Nxc4 {[%emt 0:00:18]} Nc6 {[%emt 0:13:59]} 9. b3 {[%emt 0:09:05]} Ba6 {[%emt 0:04:51]} 10. Nfe5 {[%emt 0:04:38]} Bb7 {[%emt 0:06:32]} 11. Bb2 {[%emt 0:13:54]} d5 {[%emt 0:02:41]} 12. Nxc6 {[%emt 0:00:59]} Bxc6 {[%emt 0:00:29]} 13. Ne5 {[%emt 0:00:58]} Bb5 {[%emt 0:01:18]} 14. a4 {[%emt 0:00:54]} Ba6 {[%emt 0:05:58]} 15. Nc6 {[%emt 0:00:10]} Qd7 {[%emt 0:03:10]} 16. Nxe7+ {[%emt 0:00:09]} Qxe7 {[%emt 0:00:26]} 17. Ba3 {[%emt 0:00:08]} Qd7 {[%emt 0:00:51]} 18. Bxf8 {[%emt 0:00:40]} Rxf8 {[%emt 0:00:08]} 19. Re1 {[%emt 0:00:34]} Rd8 {[%emt 0:03:20]} 20. Rc1 {[%emt 0:01:39]} Qd6 {[%emt 0:05:10]} 21. Qc2 {[%emt 0:01:07]} Rc8 {[%emt 0:00:20]} 22. Qc6 {[%emt 0:00:30]} Qxc6 {[%emt 0:00:47]} 23. Rxc6 {[%emt 0:00:17]} Bb7 {[%emt 0:00:14]} 24. Rc3 {[%emt 0:00:19]} Kf8 {[%emt 0:04:06]} 25. Rec1 {[%emt 0:01:13]} Ne8 {[%emt 0:00:00]} 26. Bf1 {[%emt 0:00:58]} Ba6 {[%emt 0:01:51]} 27. Rc5 {[%emt 0:01:27]} Bb7 {[%emt 0:03:55]} 28. e3 {[%emt 0:00:29]} a6 {[%emt 0:01:33]} 29. b4 {[%emt 0:00:23]} Ke7 {[%emt 0:01:47]} 30. b5 {[%emt 0:00:55]} a5 {[%emt 0:04:51]} 31. b6 {[%emt 0:00:36]} c6 {[%emt 0:00:00]} 32. Rxa5 {[%emt 0:00:14]} Ra8 {[%emt 0:01:27]} 33. Rxa8 {[%emt 0:00:24]} Bxa8 {[%emt 0:00:06]} 34. Ba6 {[%emt 0:00:12]} Nd6 {[%emt 0:00:10]} 35. Rb1 {[%emt 0:00:18]} Bb7 {[%emt 0:00:20]} 36. Bxb7 {[%emt 0:00:10]} Nxb7 {[%emt 0:00:08]} 37. a5 {[%emt 0:00:13]} Nxa5 {[%emt 0:01:50]} 38. b7 {[%emt 0:00:18]} Nxb7 {[%emt 0:00:16]} 39. Rxb7+ {[%emt 0:00:02]} Ke8 {[%emt 0:00:22]} 40. Rc7 {[%emt 0:00:11]} h5 {[%emt 0:00:14]} 41. Kg2 {[%emt 0:30:10]} g5 {[%emt 0:30:26]} 42. Rxc6 {[%emt 0:00:14]} g4 {[%emt 0:00:16]} 43. Rc8+ {[%emt 0:00:09]} Ke7 {[%emt 0:00:08]} 44. Rh8 {[%emt 0:00:08]} f5 {[%emt 0:00:08]} 45. Rxh5 {[%emt 0:00:09]} Kf6 {[%emt 0:00:14]} 46. Rh6+ {[%emt 0:00:23]} Kf7 {[%emt 0:00:13]} 47. h3 {[%emt 0:00:11]} Ke7 {[%emt 0:01:04]} 48. hxg4 {[%emt 0:00:10]} fxg4 {[%emt 0:00:07]} 49. Rg6 {[%emt 0:00:15]} Kf7 {[%emt 0:00:03]} 50. Rxg4 {[%emt 0:00:32]} Kf6 {[%emt 0:00:05]} 51. Rf4+ {[%emt 0:00:12]} Kg5 {[%emt 0:00:10]} 52. g4 {[%emt 0:00:17]} Kg6 {[%emt 0:00:09]} 53. Kf3 {[%emt 0:00:19]} Kg5 {[%emt 0:00:11]} 54. e4 {[%emt 0:00:14]} dxe4+ {[%emt 0:00:06]} 55. Rxe4 {[%emt 0:00:17]} Kf6 {[%emt 0:00:08]} 56. g5+ {[%emt 0:00:10]} Ke7 {[%emt 0:00:13]} 57. g6 {[%emt 0:00:07]} Kd8 {[%emt 0:00:10]} 58. Rxe6 {[%emt 0:00:35]} Kc8 {[%emt 0:00:14]} 59. g7 {[%emt 0:00:54]} Kb8 {[%emt 0:00:19]} 60. Re7 {[%emt 0:00:11]} Ka8 {[%emt 0:00:58]} 61. g8=R# {[%emt 0:00:40]} 1-0

[Event "DVM U12 2024"]
[Site "Heidelberg"]
[Date "2024.12.28"]
[Round "3"]
[White "Tiuca, Emma"]
[Black "Schmidt, Jossip"]
[Result "1/2-1/2"]
[ECO "B24"]
[WhiteElo "1472"]
[BlackElo "1687"]
[Annotator "NA RC"]
[PlyCount "131"]
[EventDate "2024.12.23"]
[EventType "team-tourn"]
[EventRounds "7"]
[EventCountry "GER"]
[SourceTitle "playchess.com"]
[Source "ChessBase"]
[SourceQuality "1"]
[TimeControl "40/5400+30:1800+30"]

1. e4 {[%emt 0:00:04]} c5 {[%emt 0:00:28]} 2. Nc3 {[%emt 0:00:16]} Nc6 {[%emt 0:00:35]} 3. g3 {[%emt 0:00:45]} g6 {[%emt 0:00:34]} 4. Bg2 {[%emt 0:00:16]} Bg7 {[%emt 0:00:32]} 5. f4 {[%emt 0:00:34]} e6 {[%emt 0:00:15]} 6. Nf3 {[%emt 0:00:32]} Nge7 {[%emt 0:01:26]} 7. O-O {[%emt 0:02:03]} O-O {[%emt 0:00:22]} 8. d3 {[%emt 0:01:15]} d5 {[%emt 0:00:25]} 9. Qe2 {[%emt 0:05:37]} Re8 {[%emt 0:06:16]} 10. Qf2 {[%emt 0:04:20]} Nd4 {[%emt 0:03:25]} 11. g4 {[%emt 0:05:21]} Nxf3+ {[%emt 0:01:06]} 12. Qxf3 {[%emt 0:00:25]} d4 {[%emt 0:04:03]} 13. Ne2 {[%emt 0:00:57]} f5 {[%emt 0:00:35]} 14. gxf5 {[%emt 0:02:27]} gxf5 {[%emt 0:01:35]} 15. Ng3 {[%emt 0:04:40]} Rb8 {[%emt 0:05:27]} 16. Nh5 {[%emt 0:00:27]} Ng6 {[%emt 0:03:01]} 17. Bd2 {[%emt 0:02:04]} Qe7 {[%emt 0:01:31]} 18. Rae1 {[%emt 0:01:01]} Qf7 {[%emt 0:11:28]} 19. Qg3 {[%emt 0:07:32]} Bd7 {[%emt 0:03:22]} 20. Bf3 {[%emt 0:10:08]} b5 {[%emt 0:02:04]} 21. Rf2 {[%emt 0:04:38]} c4 {[%emt 0:01:11]} 22. Rg2 {[%emt 0:00:33]} Rb6 {[%emt 0:21:55]} 23. e5 {[%emt 0:00:50]} Bc6 {[%emt 0:03:48]} 24. Bxc6 {[%emt 0:00:00]} Rxc6 {[%emt 0:00:03]} 25. h4 {[%emt 0:01:27]} Bh8 {[%emt 0:08:29]} 26. Nf6+ {[%emt 0:00:54]} Bxf6 {[%emt 0:00:05]} 27. exf6 {[%emt 0:00:06]} Kh8 {[%emt 0:02:43]} 28. h5 {[%emt 0:00:10]} Rg8 {[%emt 0:00:05]} 29. hxg6 {[%emt 0:00:07]} Rxg6 {[%emt 0:00:03]} 30. Qf3 {[%emt 0:01:52]} Rxg2+ {[%emt 0:00:15]} 31. Qxg2 {[%emt 0:00:08]} Rc8 {[%emt 0:00:02]} 32. Qg7+ {[%emt 0:00:27]} Qxg7+ {[%emt 0:00:06]} 33. fxg7+ {[%emt 0:00:06]} Kxg7 {[%emt 0:00:11]} 34. Rxe6 {[%emt 0:00:03]} cxd3 {[%emt 0:00:53]} 35. cxd3 {[%emt 0:00:06]} Rc2 {[%emt 0:00:08]} 36. Be1 {[%emt 0:00:55]} Rxb2 {[%emt 0:02:11]} 37. Re7+ {[%emt 0:00:25]} Kg6 {[%emt 0:00:05]} 38. Rxa7 {[%emt 0:00:08]} h5 {[%emt 0:00:12]} 39. Ra6+ {[%emt 0:00:12]} Kg7 {[%emt 0:00:21]} 40. Bh4 {[%emt 0:00:37]} Rd2 {[%emt 0:03:26]} 41. Bf6+ {[%emt 0:30:41]} Kh7 {[%emt 0:30:03]} 42. Ra7+ {[%emt 0:00:55]} Kg6 {[%emt 0:00:06]} 43. Bxd4 {[%emt 0:00:11]} Rxd3 {[%emt 0:00:05]} 44. Ra6+ {[%emt 0:00:30]} Kh7 {[%emt 0:00:56]} 45. Ra7+ {[%emt 0:00:11]} Kg6 {[%emt 0:00:07]} 46. Ra6+ {[%emt 0:00:08]} Kh7 {[%emt 0:00:06]} 47. Bf6 {[%emt 0:00:45]} Rd2 {[%emt 0:02:24]} 48. Rb6 {[%emt 0:00:38]} Rxa2 {[%emt 0:01:11]} 49. Rxb5 {[%emt 0:00:08]} Ra6 {[%emt 0:00:51]} 50. Bg5 {[%emt 0:00:09]} Kg6 {[%emt 0:00:12]} 51. Kg2 {[%emt 0:00:28]} Rc6 {[%emt 0:01:38]} 52. Bd8 {[%emt 0:00:47]} Rc8 {[%emt 0:01:56]} 53. Rb6+ {[%emt 0:00:16]} Kf7 {[%emt 0:02:05]} 54. Bg5 {[%emt 0:00:35]} Kg7 {[%emt 0:01:33]} 55. Rh6 {[%emt 0:00:39]} Rc2+ {[%emt 0:00:29]} 56. Kf3 {[%emt 0:00:45]} Rc3+ {[%emt 0:00:10]} 57. Ke2 {[%emt 0:00:14]} Rc2+ {[%emt 0:00:14]} 58. Kd3 {[%emt 0:00:14]} Rh2 {[%emt 0:00:26]} 59. Kd4 {[%emt 0:00:10]} h4 {[%emt 0:02:46]} 60. Rxh4 {[%emt 0:00:12]} Re2 {[%emt 0:00:21]} 61. Rh6 {[%emt 0:00:33]} Re1 {[%emt 0:01:08]} 62. Rf6 {[%emt 0:00:14]} Re4+ {[%emt 0:00:02]} 63. Kd3 {[%emt 0:00:46]} Rxf4 {[%emt 0:00:02]} 64. Bxf4 {[%emt 0:00:10]} Kxf6 {[%emt 0:00:11]} 65. Bb8 {[%emt 0:00:06]} f4 {[%emt 0:00:06]} 66. Bxf4 {[%emt 0:39:36]} 1/2-1/2

[Event "DVM U12 2024"]
[Site "Heidelberg"]
[Date "2024.12.28"]
[Round "3"]
[White "Kurakin, Martin"]
[Black "Bergmann, Rafael Antonio"]
[Result "0-1"]
[ECO "C47"]
[WhiteElo "1389"]
[BlackElo "1647"]
[Annotator "NA RC"]
[PlyCount "96"]
[EventDate "2024.12.23"]
[EventType "team-tourn"]
[EventRounds "7"]
[EventCountry "GER"]
[SourceTitle "playchess.com"]
[Source "ChessBase"]
[SourceQuality "1"]
[TimeControl "40/5400+30:1800+30"]

1. e4 {[%emt 0:00:02]} e5 {[%emt 0:00:04]} 2. Nf3 {[%emt 0:00:22]} Nc6 {[%emt 0:00:04]} 3. d4 {[%emt 0:00:39]} exd4 {[%emt 0:00:07]} 4. Nxd4 {[%emt 0:00:05]} Nf6 {[%emt 0:00:08]} 5. Nc3 {[%emt 0:01:08]} Nxe4 {[%emt 0:00:06]} 6. Nxe4 {[%emt 0:01:14]} Qe7 {[%emt 0:00:05]} 7. Qd3 {[%emt 0:00:21]} d5 {[%emt 0:00:35]} 8. Nxc6 {[%emt 0:01:28]} bxc6 {[%emt 0:00:05]} 9. f3 {[%emt 0:01:18]} f5 {[%emt 0:04:30]} 10. Qc3 {[%emt 0:02:19]} Qe6 {[%emt 0:00:17]} 11. Bf4 {[%emt 0:01:08]} fxe4 {[%emt 0:00:35]} 12. O-O-O {[%emt 0:00:17]} c5 {[%emt 0:07:03]} 13. Bb5+ {[%emt 0:02:25]} c6 {[%emt 0:00:11]} 14. fxe4 {[%emt 0:02:17]} cxb5 {[%emt 0:05:55]} 15. exd5 {[%emt 0:00:23]} Qf6 {[%emt 0:00:05]} 16. Rhe1+ {[%emt 0:00:23]} Kf7 {[%emt 0:00:05]} 17. Qf3 {[%emt 0:00:47]} g5 {[%emt 0:05:33]} 18. Qh5+ {[%emt 0:02:47]} Qg6 {[%emt 0:01:34]} 19. Qxg5 {[%emt 0:00:56]} Qxg5 {[%emt 0:00:09]} 20. Bxg5 {[%emt 0:00:10]} Bd6 {[%emt 0:01:51]} 21. g3 {[%emt 0:00:33]} Bh3 {[%emt 0:01:21]} 22. Bf4 {[%emt 0:01:31]} Bxf4+ {[%emt 0:00:27]} 23. gxf4 {[%emt 0:00:08]} Rhe8 {[%emt 0:00:11]} 24. Rg1 {[%emt 0:03:40]} Rg8 {[%emt 0:00:12]} 25. Rge1 {[%emt 0:01:39]} Rae8 {[%emt 0:00:07]} 26. Re5 {[%emt 0:00:14]} Rxe5 {[%emt 0:01:51]} 27. fxe5 {[%emt 0:00:10]} Rg5 {[%emt 0:00:07]} 28. e6+ {[%emt 0:00:42]} Ke8 {[%emt 0:00:57]} 29. Rd3 {[%emt 0:04:04]} Bf5 {[%emt 0:00:39]} 30. Re3 {[%emt 0:01:48]} Rg2 {[%emt 0:00:58]} 31. Rc3 {[%emt 0:04:46]} c4 {[%emt 0:01:32]} 32. b3 {[%emt 0:01:13]} Rxh2 {[%emt 0:00:05]} 33. a3 {[%emt 0:01:27]} h5 {[%emt 0:01:12]} 34. bxc4 {[%emt 0:04:04]} Rxc2+ {[%emt 0:00:19]} 35. Rxc2 {[%emt 0:00:24]} Bxc2 {[%emt 0:00:03]} 36. Kxc2 {[%emt 0:00:07]} bxc4 {[%emt 0:00:05]} 37. d6 {[%emt 0:17:35]} h4 {[%emt 0:00:08]} 38. d7+ {[%emt 0:00:19]} Ke7 {[%emt 0:00:04]} 39. Kc3 {[%emt 0:00:07]} h3 {[%emt 0:00:05]} 40. Kxc4 {[%emt 0:00:20]} h2 {[%emt 0:00:06]} 41. Kb5 {[%emt 0:30:09]} h1=Q {[%emt 0:30:10]} 42. a4 {[%emt 0:00:22]} Qd5+ {[%emt 0:00:08]} 43. Ka6 {[%emt 0:00:13]} Kd8 {[%emt 0:00:10]} 44. e7+ {[%emt 0:00:12]} Kxd7 {[%emt 0:00:09]} 45. a5 {[%emt 0:00:11]} Kc7 {[%emt 0:00:28]} 46. e8=N+ {[%emt 0:00:13]} Kc8 {[%emt 0:00:11]} 47. Nd6+ {[%emt 0:01:07]} Kb8 {[%emt 0:00:38]} 48. Nb5 {[%emt 0:01:15]} Qc6# {[%emt 0:00:11]} 0-1

[Event "DVM U12 2024"]
[Site "Heidelberg"]
[Date "2024.12.28"]
[Round "3"]
[White "Buff, Hannes"]
[Black "Tomovski, Leon"]
[Result "0-1"]
[ECO "C01"]
[WhiteElo "1370"]
[BlackElo "1569"]
[Annotator "NA"]
[PlyCount "72"]
[EventDate "2024.12.23"]
[EventType "team-tourn"]
[EventRounds "7"]
[EventCountry "GER"]
[SourceTitle "playchess.com"]
[Source "ChessBase"]
[SourceQuality "1"]
[TimeControl "40/5400+30:1800+30"]

1. e4 {[%emt 0:00:04]} e6 {[%emt 0:00:03]} 2. d4 {[%emt 0:00:42]} d5 {[%emt 0:00:03]} 3. exd5 {[%emt 0:01:35]} exd5 {[%emt 0:00:12]} 4. Nf3 {[%emt 0:01:53]} Bd6 {[%emt 0:00:24]} 5. Nc3 {[%emt 0:04:00]} c6 {[%emt 0:00:25]} 6. Bd3 {[%emt 0:08:05]} Nf6 {[%emt 0:01:03]} 7. O-O {[%emt 0:05:19]} O-O {[%emt 0:00:10]} 8. Re1 {[%emt 0:05:11]} Bg4 {[%emt 0:00:19]} 9. h3 {[%emt 0:02:01]} Bh5 {[%emt 0:00:07]} 10. Bg5 {[%emt 0:10:17]} Nbd7 {[%emt 0:00:14]} 11. Bh4 {[%emt 0:01:40]} Qb6 {[%emt 0:00:24]} 12. b3 {[%emt 0:02:29]} Bb4 {[%emt 0:01:14]} 13. Na4 {[%emt 0:01:54]} Qc7 {[%emt 0:01:03]} 14. Re3 {[%emt 0:02:22]} b5 {[%emt 0:00:35]} 15. Bxf6 {[%emt 0:08:57]} Nxf6 {[%emt 0:00:09]} 16. Nc5 {[%emt 0:00:49]} Bc3 {[%emt 0:00:43]} 17. Rb1 {[%emt 0:01:44]} h6 {[%emt 0:00:32]} 18. Bh7+ {[%emt 0:00:42]} Nxh7 {[%emt 0:00:38]} 19. Rxc3 {[%emt 0:00:09]} Ng5 {[%emt 0:00:10]} 20. Qd2 {[%emt 0:03:06]} Bxf3 {[%emt 0:00:34]} 21. Rxf3 {[%emt 0:03:02]} Nxf3+ {[%emt 0:00:18]} 22. gxf3 {[%emt 0:00:10]} Qc8 {[%emt 0:00:14]} 23. Kg2 {[%emt 0:01:31]} Re8 {[%emt 0:01:11]} 24. Rg1 {[%emt 0:03:31]} Kh8 {[%emt 0:01:15]} 25. Nd3 {[%emt 0:07:50]} Qf5 {[%emt 0:00:34]} 26. Kh2 {[%emt 0:07:55]} Re6 {[%emt 0:00:30]} 27. Ne5 {[%emt 0:02:39]} c5 {[%emt 0:00:45]} 28. c3 {[%emt 0:02:28]} b4 {[%emt 0:02:02]} 29. cxb4 {[%emt 0:03:37]} cxd4 {[%emt 0:00:35]} 30. f4 {[%emt 0:00:50]} Rc8 {[%emt 0:00:22]} 31. Qxd4 {[%emt 0:00:35]} Rc2 {[%emt 0:00:12]} 32. Nd7 {[%emt 0:01:41]} f6 {[%emt 0:01:31]} 33. Nf8 {[%emt 0:01:57]} Re4 {[%emt 0:00:16]} 34. Qxa7 {[%emt 0:00:41]} Qxf4+ {[%emt 0:00:28]} 35. Kh1 {[%emt 0:02:38]} Qf3+ {[%emt 0:00:15]} 36. Rg2 {[%emt 0:00:23]} Qxh3+ {[%emt 0:00:44]} 0-1

[Event "DVM U12 2024"]
[Site "Heidelberg"]
[Date "2024.12.28"]
[Round "3"]
[White "Midianyi, Matvii"]
[Black "Ramayanam, Nithya"]
[Result "0-1"]
[ECO "C47"]
[WhiteElo "1240"]
[BlackElo "1566"]
[Annotator "NA"]
[PlyCount "144"]
[EventDate "2024.12.23"]
[EventType "team-tourn"]
[EventRounds "7"]
[EventCountry "GER"]
[SourceTitle "playchess.com"]
[Source "ChessBase"]
[SourceQuality "1"]
[TimeControl "40/5400+30:1800+30"]

1. e4 {[%emt 0:01:11]} e5 {[%emt 0:00:00]} 2. Nf3 {[%emt 0:00:40]} Nf6 {[%emt 0:00:00]} 3. Nc3 {[%emt 0:04:05]} Nc6 {[%emt 0:00:21]} 4. Be2 {[%emt 0:01:59]} Bc5 {[%emt 0:03:23]} 5. Nxe5 {[%emt 0:02:44]} Nxe5 {[%emt 0:01:13]} 6. d4 {[%emt 0:04:52]} Bd6 {[%emt 0:16:11]} 7. dxe5 {[%emt 0:07:18]} Bxe5 {[%emt 0:00:14]} 8. Bg5 {[%emt 0:06:07]} Qe7 {[%emt 0:02:52]} 9. Qd3 {[%emt 0:05:52]} Bxc3+ {[%emt 0:08:16]} 10. bxc3 {[%emt 0:03:41]} Qxe4 {[%emt 0:00:27]} 11. Bxf6 {[%emt 0:01:04]} Qxd3 {[%emt 0:00:17]} 12. cxd3 {[%emt 0:00:39]} gxf6 {[%emt 0:00:08]} 13. O-O {[%emt 0:01:59]} O-O {[%emt 0:01:14]} 14. d4 {[%emt 0:03:15]} d6 {[%emt 0:00:36]} 15. Rab1 {[%emt 0:02:29]} Rb8 {[%emt 0:02:13]} 16. c4 {[%emt 0:05:49]} Bd7 {[%emt 0:03:08]} 17. Rb3 {[%emt 0:02:16]} Kh8 {[%emt 0:00:51]} 18. Ra3 {[%emt 0:02:21]} Ra8 {[%emt 0:03:45]} 19. f4 {[%emt 0:01:08]} Rfe8 {[%emt 0:00:58]} 20. Bf3 {[%emt 0:01:38]} c6 {[%emt 0:02:59]} 21. Bh5 {[%emt 0:03:41]} Re4 {[%emt 0:01:51]} 22. Bxf7 {[%emt 0:01:12]} Be8 {[%emt 0:02:08]} 23. Bxe8 {[%emt 0:00:38]} Rexe8 {[%emt 0:00:19]} 24. d5 {[%emt 0:00:28]} c5 {[%emt 0:01:33]} 25. Rb1 {[%emt 0:03:40]} b6 {[%emt 0:01:03]} 26. f5 {[%emt 0:03:34]} Re4 {[%emt 0:00:14]} 27. Rxb6 {[%emt 0:01:33]} axb6 {[%emt 0:05:55]} 28. Rxa8+ {[%emt 0:00:55]} Kg7 {[%emt 0:00:02]} 29. Ra7+ {[%emt 0:00:38]} Kh6 {[%emt 0:00:28]} 30. Ra6 {[%emt 0:00:55]} Rxc4 {[%emt 0:00:15]} 31. Rxb6 {[%emt 0:00:45]} Rc1+ {[%emt 0:00:31]} 32. Kf2 {[%emt 0:00:01]} Rc2+ {[%emt 0:00:57]} 33. Kf3 {[%emt 0:00:23]} Rxa2 {[%emt 0:00:13]} 34. Rxd6 {[%emt 0:00:04]} Kg5 {[%emt 0:00:49]} 35. Rc6 {[%emt 0:01:12]} Kxf5 {[%emt 0:02:33]} 36. Rxc5 {[%emt 0:00:45]} Ra3+ {[%emt 0:00:44]} 37. Ke2 {[%emt 0:00:10]} Ra2+ {[%emt 0:00:04]} 38. Kd3 {[%emt 0:00:03]} Rxg2 {[%emt 0:00:47]} 39. d6+ {[%emt 0:00:20]} Ke6 {[%emt 0:00:29]} 40. Rh5 {[%emt 0:00:50]} Rg7 {[%emt 0:02:35]} 41. Kc4 {[%emt 0:30:21]} Kxd6 {[%emt 0:30:37]} 42. Rd5+ {[%emt 0:00:13]} Ke6 {[%emt 0:00:25]} 43. Kc5 {[%emt 0:00:40]} Rc7+ {[%emt 0:00:11]} 44. Kd4 {[%emt 0:00:09]} Rd7 {[%emt 0:00:31]} 45. Rxd7 {[%emt 0:00:20]} Kxd7 {[%emt 0:00:02]} 46. Ke4 {[%emt 0:00:02]} Ke6 {[%emt 0:00:14]} 47. h4 {[%emt 0:00:08]} h5 {[%emt 0:00:57]} 48. Kf4 {[%emt 0:00:13]} Kf7 {[%emt 0:02:35]} 49. Kf5 {[%emt 0:00:09]} Kg7 {[%emt 0:00:09]} 50. Ke6 {[%emt 0:00:05]} Kg6 {[%emt 0:00:06]} 51. Kd5 {[%emt 0:00:12]} Kf5 {[%emt 0:00:26]} 52. Kd4 {[%emt 0:00:10]} Kg4 {[%emt 0:00:47]} 53. Ke3 {[%emt 0:00:56]} f5 {[%emt 0:00:47]} 54. Kf2 {[%emt 0:00:00]} Kf4 {[%emt 0:00:09]} 55. Kg2 {[%emt 0:00:00]} Kg4 {[%emt 0:00:42]} 56. Kh2 {[%emt 0:00:00]} Kxh4 {[%emt 0:00:13]} 57. Kg2 {[%emt 0:00:00]} Kg4 {[%emt 0:00:12]} 58. Kf2 {[%emt 0:00:00]} h4 {[%emt 0:00:24]} 59. Kg2 {[%emt 0:00:00]} h3+ {[%emt 0:01:21]} 60. Kh2 {[%emt 0:00:00]} f4 {[%emt 0:00:07]} 61. Kg1 {[%emt 0:01:05]} Kg3 {[%emt 0:00:24]} 62. Kf1 {[%emt 0:00:25]} f3 {[%emt 0:00:19]} 63. Kg1 {[%emt 0:00:05]} f2+ {[%emt 0:00:35]} 64. Kf1 {[%emt 0:00:15]} h2 {[%emt 0:00:06]} 65. Ke2 {[%emt 0:00:02]} h1=Q {[%emt 0:00:16]} 66. Ke3 {[%emt 0:00:08]} f1=Q {[%emt 0:00:21]} 67. Kd4 {[%emt 0:00:11]} Qe1 {[%emt 0:00:15]} 68. Kd3 {[%emt 0:00:10]} Qg2 {[%emt 0:00:14]} 69. Kd4 {[%emt 0:00:13]} Qgd2+ {[%emt 0:00:06]} 70. Kc4 {[%emt 0:00:11]} Qec1+ {[%emt 0:00:12]} 71. Kb3 {[%emt 0:00:33]} Qdb2+ {[%emt 0:00:05]} 72. Ka4 {[%emt 0:00:08]} Qca1# {[%emt 0:00:13]} 0-1

[Event "DVM U12 2024"]
[Site "Heidelberg"]
[Date "2024.12.28"]
[Round "3"]
[White "Lieberknecht, Pascal"]
[Black "Hübler, Lennis"]
[Result "0-1"]
[ECO "C54"]
[WhiteElo "1212"]
[BlackElo "1261"]
[Annotator "NA"]
[PlyCount "50"]
[EventDate "2024.12.23"]
[EventType "team-tourn"]
[EventRounds "7"]
[EventCountry "GER"]
[SourceTitle "playchess.com"]
[Source "ChessBase"]
[SourceQuality "1"]
[TimeControl "40/5400+30:1800+30"]

1. e4 {[%emt 0:00:01]} e5 {[%emt 0:00:08]} 2. Nf3 {[%emt 0:00:05]} Nc6 {[%emt 0:00:20]} 3. Bc4 {[%emt 0:00:19]} Bc5 {[%emt 0:00:15]} 4. O-O {[%emt 0:00:08]} Nf6 {[%emt 0:00:11]} 5. c3 {[%emt 0:01:30]} Nxe4 {[%emt 0:05:05]} 6. d4 {[%emt 0:00:07]} exd4 {[%emt 0:02:32]} 7. cxd4 {[%emt 0:00:06]} Be7 {[%emt 0:01:17]} 8. Re1 {[%emt 0:00:22]} d5 {[%emt 0:00:42]} 9. Bb3 {[%emt 0:00:32]} O-O {[%emt 0:01:12]} 10. Nbd2 {[%emt 0:00:07]} Nf6 {[%emt 0:04:16]} 11. Nf1 {[%emt 0:01:13]} Bg4 {[%emt 0:04:32]} 12. Ne3 {[%emt 0:00:16]} Bb4 {[%emt 0:01:01]} 13. Nxg4 {[%emt 0:01:28]} Nxg4 {[%emt 0:02:01]} 14. Bd2 {[%emt 0:01:25]} Bxd2 {[%emt 0:01:07]} 15. Qxd2 {[%emt 0:00:08]} Nf6 {[%emt 0:00:29]} 16. Ne5 {[%emt 0:01:02]} Re8 {[%emt 0:05:20]} 17. Nxc6 {[%emt 0:00:28]} bxc6 {[%emt 0:00:43]} 18. Ba4 {[%emt 0:00:52]} Rxe1+ {[%emt 0:02:18]} 19. Rxe1 {[%emt 0:00:09]} Qd6 {[%emt 0:02:36]} 20. Qc2 {[%emt 0:00:32]} Qb4 {[%emt 0:03:38]} 21. Re2 {[%emt 0:04:47]} Qxd4 {[%emt 0:03:18]} 22. Rd2 {[%emt 0:01:10]} Re8 {[%emt 0:03:06]} 23. h3 {[%emt 0:01:27]} Re1+ {[%emt 0:02:53]} 24. Kh2 {[%emt 0:00:17]} Qf4+ {[%emt 0:00:15]} 25. g3 {[%emt 0:00:22]} Qf3 {[%emt 0:06:11]} 0-1

[Event "DVM U12 2024"]
[Site "Heidelberg"]
[Date "2024.12.28"]
[Round "3"]
[White "Podousov, Andrii"]
[Black "Classen, Meara"]
[Result "1/2-1/2"]
[ECO "C01"]
[WhiteElo "1105"]
[BlackElo "1456"]
[Annotator "NA"]
[PlyCount "89"]
[EventDate "2024.12.23"]
[EventType "team-tourn"]
[EventRounds "7"]
[EventCountry "GER"]
[SourceTitle "playchess.com"]
[Source "ChessBase"]
[SourceQuality "1"]
[TimeControl "40/5400+30:1800+30"]

1. e4 {[%emt 0:00:01]} e6 {[%emt 0:00:05]} 2. d4 {[%emt 0:01:55]} d5 {[%emt 0:00:09]} 3. exd5 {[%emt 0:00:20]} exd5 {[%emt 0:00:15]} 4. Bd3 {[%emt 0:00:36]} Nf6 {[%emt 0:00:57]} 5. Nf3 {[%emt 0:00:33]} Bd6 {[%emt 0:00:59]} 6. Bg5 {[%emt 0:00:45]} O-O {[%emt 0:01:45]} 7. O-O {[%emt 0:00:24]} Bg4 {[%emt 0:01:01]} 8. h3 {[%emt 0:00:14]} Bh5 {[%emt 0:01:29]} 9. Re1 {[%emt 0:01:28]} c6 {[%emt 0:02:32]} 10. Nbd2 {[%emt 0:03:38]} Nbd7 {[%emt 0:01:59]} 11. Be2 {[%emt 0:02:25]} h6 {[%emt 0:04:53]} 12. Bh4 {[%emt 0:00:29]} Be7 {[%emt 0:04:31]} 13. Nf1 {[%emt 0:02:26]} Re8 {[%emt 0:08:37]} 14. Bd3 {[%emt 0:00:35]} Ne4 {[%emt 0:06:29]} 15. Bxe7 {[%emt 0:01:30]} Rxe7 {[%emt 0:02:31]} 16. Ng3 {[%emt 0:01:46]} Bg6 {[%emt 0:07:19]} 17. Nd2 {[%emt 0:04:10]} Ndf6 {[%emt 0:07:37]} 18. Ndxe4 {[%emt 0:06:04]} Nxe4 {[%emt 0:01:34]} 19. Qf3 {[%emt 0:02:19]} Nxg3 {[%emt 0:00:54]} 20. Qxg3 {[%emt 0:02:12]} Rxe1+ {[%emt 0:00:53]} 21. Rxe1 {[%emt 0:00:13]} Bxd3 {[%emt 0:00:26]} 22. Qxd3 {[%emt 0:00:13]} Qa5 {[%emt 0:02:04]} 23. Re7 {[%emt 0:02:22]} b6 {[%emt 0:04:39]} 24. Qf3 {[%emt 0:01:36]} Rf8 {[%emt 0:01:24]} 25. a3 {[%emt 0:00:30]} Qa4 {[%emt 0:01:41]} 26. Qc3 {[%emt 0:01:27]} Rc8 {[%emt 0:03:18]} 27. Qb4 {[%emt 0:03:06]} Qxb4 {[%emt 0:02:07]} 28. axb4 {[%emt 0:00:17]} a5 {[%emt 0:00:26]} 29. bxa5 {[%emt 0:00:19]} bxa5 {[%emt 0:00:10]} 30. Ra7 {[%emt 0:00:16]} Rb8 {[%emt 0:00:14]} 31. b3 {[%emt 0:00:29]} Rb4 {[%emt 0:01:05]} 32. Rxa5 {[%emt 0:00:36]} Rxd4 {[%emt 0:00:25]} 33. Ra6 {[%emt 0:00:19]} c5 {[%emt 0:00:28]} 34. Rc6 {[%emt 0:00:16]} c4 {[%emt 0:01:26]} 35. c3 {[%emt 0:02:14]} Rd1+ {[%emt 0:01:37]} 36. Kh2 {[%emt 0:00:17]} cxb3 {[%emt 0:00:47]} 37. Rb6 {[%emt 0:00:15]} Rb1 {[%emt 0:00:48]} 38. Kg3 {[%emt 0:01:04]} b2 {[%emt 0:00:47]} 39. Kf3 {[%emt 0:00:39]} Rc1 {[%emt 0:00:22]} 40. Rxb2 {[%emt 0:00:16]} Rxc3+ {[%emt 0:00:12]} 41. Kf4 {[%emt 0:30:36]} d4 {[%emt 0:30:24]} 42. Rd2 {[%emt 0:00:26]} d3 {[%emt 0:00:41]} 43. Ke3 {[%emt 0:00:22]} Kh7 {[%emt 0:01:53]} 44. Rxd3 {[%emt 0:00:09]} Rxd3+ {[%emt 0:00:08]} 45. Kxd3 {[%emt 0:00:09]} 1/2-1/2